bitfinex/quotes_SOLUSD_20250506
["timestamp","ask_amount","ask_price","bid_price","bid_amount"]
[1746520025439,8.31428392,144.3,144.27,23.72148894]
[1746520025642,8.31428392,144.3,144.26,23.72148894]
[1746520025643,32.03577286,144.3,144.26,23.72148894]
[1746520025859,17.7,144.29,144.26,23.72148894]
[1746520026060,17.7,144.29,144.25,23.72148894]
[1746520026244,17.7,144.29,144.27,23.72148894]
[1746520026861,17.7,144.29,144.28,23.72148894]
[1746520027356,24.63048721,144.29,144.28,23.72148894]
[1746520027763,24.63048721,144.29,144.24,14.26]
[1746520028066,6.93048721,144.29,144.28,23.72148894]
[1746520028252,6.93022063,144.3,144.28,23.72148894]
[1746520028436,6.93022063,144.3,144.29,23.72148894]
[1746520029673,6.92904656,144.32,144.29,23.72148894]
[1746520031272,6.92904656,144.32,144.3,23.72148894]
[1746520031772,24.25107847,144.33,144.3,23.72148894]
[1746520032473,6.92856647,144.33,144.3,23.72148894]
[1746520032674,6.92856647,144.33,144.31,23.72148894]
[1746520032851,6.92856647,144.33,144.32,23.72148894]
[1746520033674,6.92760651,144.35,144.32,23.72148894]
[1746520033979,6.92760651,144.35,144.33,23.72148894]
[1746520034699,24.24662278,144.35,144.32,23.72148894]
[1746520035878,49.35238871,144.35,144.29,14.26]
[1746520036078,23.72148894,144.34,144.29,14.26]
[1746520036370,18.64964886,144.34,144.31,23.72148894]
[1746520036588,49.35238871,144.35,144.31,23.72148894]
[1746520037552,5.0848286,144.34,144.31,23.72148894]
[1746520037751,6.92856647,144.33,144.31,23.72148894]
[1746520038377,6.92856647,144.33,144.29,14.26]
[1746520038578,6.92856647,144.33,144.31,23.72148894]
[1746520039989,6.92808646,144.34,144.32,14.82321739]
[1746520040559,6.92808646,144.34,144.33,14.82321739]
[1746520040793,19.08427699,144.37,144.33,14.82321739]
[1746520040965,6.92712662,144.36,144.34,14.82321739]
[1746520041153,6.92616705,144.38,144.35,14.82321739]
[1746520041356,6.92616705,144.38,144.37,14.82321739]
[1746520041985,17.31316414,144.4,144.37,14.82321739]
[1746520041986,6.92520775,144.4,144.37,14.82321739]
[1746520042165,6.92520775,144.4,144.39,14.82321739]
[1746520043756,6.92520775,144.4,144.39,23.68919626]
[1746520044886,24.62481984,144.41,144.39,23.68919626]
[1746520045189,6.9237693,144.43,144.4,23.68919626]
[1746520045366,6.9237693,144.43,144.42,23.68919626]
[1746520046192,24.23083812,144.45,144.42,23.68919626]
[1746520046775,24.23083812,144.45,144.43,23.68919626]
[1746520047506,6.92281066,144.45,144.44,23.68919626]
[1746520048577,24.2266266,144.47,144.41,49.68919626]
[1746520048779,49.30009985,144.47,144.41,26.0]
[1746520048997,49.30009985,144.47,144.43,23.68919626]
[1746520050082,25.61090359,144.47,144.44,23.68919626]
[1746520050385,17.7,144.46,144.43,23.68919626]
[1746520050588,17.7,144.46,144.39,14.26]
[1746520050589,43.3141143,144.45,144.39,14.26]
[1746520050784,17.7,144.44,144.41,23.68919626]
[1746520051211,17.7,144.44,144.42,23.68919626]
[1746520051892,17.7,144.44,144.39,14.26]
[1746520052386,17.7,144.44,144.42,23.68919626]
[1746520052780,6.9237693,144.43,144.39,14.26]
[1746520052982,6.9237693,144.43,144.42,23.68919626]
[1746520054907,24.22983731,144.45,144.42,23.68919626]
[1746520055108,24.22983731,144.45,144.43,23.68919626]
[1746520057412,24.22983731,144.45,144.39,14.26]
[1746520057580,24.22983731,144.45,144.44,23.68919626]
[1746520058807,24.22983731,144.45,144.43,23.68919626]
[1746520059105,25.6141143,144.45,144.42,23.68919626]
[1746520060808,23.68919626,144.43,144.34,8.0457]
[1746520061105,23.68919626,144.42,144.34,45.97489626]
[1746520061320,19.08427699,144.41,144.38,23.68919626]
[1746520061613,6.92520775,144.4,144.38,23.68919626]
[1746520062190,24.23822714,144.4,144.37,23.68919626]
[1746520063591,24.23822714,144.4,144.38,23.68919626]
[1746520064302,24.23822714,144.4,144.37,23.68919626]
[1746520065217,24.23822714,144.4,144.38,23.68919626]
[1746520066789,24.23822714,144.4,144.39,23.68919626]
[1746520067015,24.23822714,144.4,144.38,23.68919626]
[1746520067509,24.23822714,144.4,144.37,23.68919626]
[1746520067700,1.38427699,144.39,144.36,23.68919626]
[1746520068089,25.62250413,144.4,144.37,23.68919626]
[1746520068885,25.62250413,144.4,144.38,23.68919626]
[1746520069989,24.23822714,144.4,144.39,23.68919626]
[1746520071288,6.92520775,144.4,144.39,23.68919626]
[1746520071696,6.9237693,144.43,144.39,23.68919626]
[1746520071898,6.9237693,144.43,144.42,23.68919626]
[1746520077622,6.92328994,144.44,144.42,23.68919626]
[1746520079005,5.09896298,144.43,144.42,23.68919626]
[1746520079734,6.92328994,144.44,144.42,14.80033038]
[1746520081022,24.2315148,144.44,144.39,14.24]
[1746520081214,41.9315148,144.44,144.42,14.80033038]
[1746520081605,24.62328994,144.44,144.43,14.80033038]
[1746520083397,24.62328994,144.44,144.4,33.6223]
[1746520083609,24.62328994,144.44,144.43,14.80033038]
[1746520083918,17.7,144.44,144.43,14.80033038]
[1746520084338,24.62328994,144.44,144.43,14.80033038]
[1746520085338,6.92328994,144.44,144.4,33.6223]
[1746520085640,6.92328994,144.44,144.43,14.80033038]
[1746520085840,24.22988101,144.45,144.43,14.80033038]
[1746520086042,24.22988101,144.45,144.44,14.80033038]
[1746520086642,29.34855534,144.45,144.41,14.80033038]
[1746520086814,29.34855534,144.45,144.4,7.6223]
[1746520087018,24.22988101,144.45,144.44,14.80033038]
[1746520088113,29.34883998,144.45,144.4,7.6223]
[1746520088425,29.34883998,144.45,144.44,14.80033038]
[1746520089926,29.34883998,144.45,144.43,14.80033038]
[1746520090119,5.11895897,144.44,144.43,14.80033038]
[1746520091810,5.11895897,144.44,144.4,1.5303]
[1746520091811,13.4265259,144.44,144.4,1.5303]
[1746520092011,30.73475076,144.44,144.42,14.80033038]
[1746520092442,5.11895897,144.43,144.42,14.80033038]
[1746520093234,17.7,144.42,144.37,15.7844]
[1746520093447,19.08427699,144.42,144.37,14.24]
[1746520093653,33.88460737,144.42,144.38,14.80033038]
[1746520093942,37.61928935,144.41,144.33,15.7844]
[1746520094113,16.18460737,144.4,144.36,14.80033038]
[1746520094433,33.88460737,144.4,144.36,14.80033038]
[1746520094635,19.08427699,144.4,144.36,14.80033038]
[1746520094814,5.11895897,144.39,144.36,14.80033038]
[1746520095019,5.11895897,144.39,144.34,26.0]
[1746520095223,6.92616705,144.38,144.37,14.80033038]
[1746520095434,29.74512602,144.38,144.37,14.80033038]
[1746520097445,29.74512602,144.38,144.34,26.0]
[1746520097658,17.7,144.37,144.33,14.24]
[1746520097946,17.7,144.37,144.35,14.80033038]
[1746520098646,5.11895897,144.36,144.35,14.80033038]
[1746520098854,5.11895897,144.36,144.33,14.24]
[1746520099147,5.11895897,144.36,144.35,14.80033038]
[1746520099760,12.04608559,144.36,144.35,14.80033038]
[1746520100422,6.92712662,144.36,144.35,14.80033038]
[1746520100947,17.31541764,144.38,144.35,14.80033038]
[1746520100948,6.92616705,144.38,144.35,14.80033038]
[1746520101130,6.92616705,144.38,144.37,14.80033038]
[1746520102339,12.03422873,144.38,144.37,14.80033038]
[1746520103044,5.10806168,144.38,144.37,14.80033038]
[1746520103423,24.62587268,144.39,144.37,14.80033038]
[1746520103644,24.62587268,144.39,144.38,14.80033038]
[1746520104042,29.73334501,144.39,144.38,14.80033038]
[1746520104646,5.10747233,144.39,144.38,14.80033038]
[1746520104840,6.9247174,144.42,144.38,14.80033038]
[1746520105044,6.9247174,144.42,144.41,14.80033038]
[1746520105748,6.9247174,144.42,144.41,23.68398992]
[1746520105936,12.03426617,144.42,144.41,23.68398992]
[1746520109454,29.73426617,144.42,144.41,23.68398992]
[1746520111855,17.7,144.41,144.39,23.68398992]
[1746520112151,17.7,144.41,144.4,23.68398992]
[1746520112533,22.80954877,144.41,144.4,23.68398992]
[1746520113049,29.73427697,144.41,144.4,23.68398992]
[1746520118050,22.80954877,144.41,144.4,23.68398992]
[1746520118249,5.10954877,144.41,144.4,23.68398992]
[1746520118945,6.92444734,144.42,144.4,23.68398992]
[1746520119250,6.92444734,144.42,144.41,23.68398992]
[1746520121260,6.92444734,144.42,144.4,23.68398992]
[1746520121462,24.62444734,144.42,144.4,23.68398992]
[1746520122766,1.38427699,144.41,144.38,23.68398992]
[1746520122965,17.7,144.4,144.38,23.68398992]
[1746520123260,19.08427699,144.39,144.33,14.24]
[1746520123466,17.7,144.38,144.35,23.68398992]
[1746520123759,6.92664681,144.37,144.35,23.68398992]
[1746520125267,6.92664681,144.37,144.36,23.68398992]
[1746520126444,24.24178903,144.38,144.36,23.68398992]
[1746520127770,24.24178903,144.38,144.36,14.8139012]
[1746520129251,1.38427699,144.37,144.33,14.24]
[1746520129564,17.7,144.36,144.35,14.8139012]
[1746520129773,17.7,144.36,144.33,14.24]
[1746520129954,17.7,144.36,144.35,14.8139012]
[1746520130867,24.62712662,144.36,144.35,14.8139012]
[1746520131370,24.24494318,144.36,144.34,14.8139012]
[1746520131952,24.24494318,144.36,144.35,14.8139012]
[1746520133058,17.31781656,144.36,144.35,14.8139012]
[1746520133570,18.70209355,144.36,144.35,14.8139012]
[1746520134967,25.62922017,144.36,144.32,26.0]
[1746520135164,24.24494318,144.36,144.35,14.8139012]
[1746520136254,17.31781656,144.36,144.35,14.8139012]
[1746520136466,18.70209355,144.36,144.35,14.8139012]
[1746520139083,25.62922017,144.36,144.35,14.8139012]
[1746520139280,6.92712662,144.36,144.35,14.8139012]
[1746520139886,143.42681246,144.37,144.35,14.8139012]
[1746520140181,136.5,144.37,144.36,14.8139012]
[1746520140385,17.7,144.37,144.36,14.8139012]
[1746520141271,24.62664681,144.37,144.36,14.8139012]
[1746520142081,24.62664681,144.37,144.32,26.0]
[1746520142281,24.62664681,144.37,144.36,14.8139012]
[1746520146272,24.62664681,144.37,144.33,14.24]
[1746520146470,17.7,144.36,144.33,14.24]
[1746520146683,17.7,144.36,144.35,14.8139012]
[1746520148575,24.62712662,144.36,144.35,14.8139012]
[1746520148782,29.75386997,144.36,144.35,14.8139012]
[1746520149289,47.07168653,144.36,144.33,14.24]
[1746520149595,5.12674335,144.35,144.34,14.8139012]
[1746520150787,12.05434986,144.35,144.34,14.8139012]
[1746520155591,6.92760651,144.35,144.34,14.8139012]
[1746520156696,6.92728389,144.36,144.34,14.8139012]
[1746520156997,6.92664681,144.37,144.35,14.8139012]
[1746520157493,6.92664681,144.37,144.36,14.8139012]
[1746520157901,143.426355,144.38,144.36,14.8139012]
[1746520158197,143.426355,144.38,144.37,14.8139012]
[1746520158714,148.53322979,144.38,144.37,14.8139012]
[1746520159608,148.53322979,144.38,144.34,14.8139012]
[1746520159817,148.53322979,144.38,144.37,14.8139012]
[1746520160413,165.84864743,144.38,144.33,6.035]
[1746520160599,14.8139012,144.35,144.27,1.6207]
[1746520160904,26.0,144.32,144.25,20.255]
[1746520161110,1.38427699,144.31,144.28,14.8139012]
[1746520161273,1.38427699,144.31,144.25,20.255]
[1746520161274,5.10687479,144.3,144.25,20.255]
[1746520161477,1.38427699,144.29,144.25,14.22]
[1746520161704,6.93096756,144.28,144.25,14.22]
[1746520161881,6.93096756,144.28,144.27,14.8139012]
[1746520162095,12.03784235,144.28,144.26,14.8139012]
[1746520162906,5.10687479,144.27,144.26,14.8139012]
[1746520163602,12.03832276,144.27,144.26,14.8139012]
[1746520163778,6.93144797,144.27,144.26,14.8139012]
[1746520165000,34.64344393,144.33,144.26,14.8139012]
[1746520165001,6.93048721,144.29,144.26,29.6278024]
[1746520165198,6.93048721,144.29,144.28,14.8139012]
[1746520165804,24.25166296,144.32,144.28,14.8139012]
[1746520165997,17.7,144.31,144.27,14.8139012]
[1746520166186,19.08427699,144.31,144.3,14.8139012]
[1746520166603,17.7,144.31,144.3,14.8139012]
[1746520167311,22.7949134,144.31,144.3,14.8139012]
[1746520167704,29.72444011,144.31,144.3,14.8139012]
[1746520169010,22.7949134,144.31,144.3,14.8139012]
[1746520169193,17.7,144.31,144.3,29.0539012]
[1746520169899,17.7,144.34,144.3,29.0539012]
[1746520170115,24.62808646,144.34,144.33,14.8139012]
[1746520170313,6.92808646,144.34,144.33,14.8139012]
[1746520171709,24.24676857,144.35,144.33,23.70868535]
[1746520171905,24.24676857,144.35,144.34,23.70868535]
[1746520173517,29.34793876,144.35,144.3,14.24]
[1746520173698,25.09296234,144.34,144.3,37.94868535]
[1746520174000,24.24998266,144.33,144.3,37.94868535]
[1746520174823,24.24998266,144.33,144.31,23.70868535]
[1746520179520,24.24998266,144.33,144.32,23.70868535]
[1746520179811,29.35387707,144.33,144.32,23.70868535]
[1746520181717,29.35387707,144.33,144.3,14.24]
[1746520181898,5.10389441,144.32,144.31,23.70868535]
[1746520183923,12.03294097,144.32,144.31,23.70868535]
[1746520184133,6.92904656,144.32,144.31,23.70868535]
[1746520185631,6.92808646,144.34,144.31,23.70868535]
[1746520185814,6.92808646,144.34,144.33,23.70868535]
[1746520186725,12.03250725,144.34,144.33,23.70868535]
[1746520187428,6.92808646,144.34,144.33,23.70868535]
[1746520189434,1.38427699,144.37,144.33,23.70868535]
[1746520189730,6.92712662,144.36,144.35,23.70868535]
[1746520190229,12.03163989,144.36,144.35,23.70868535]
[1746520191814,12.03163989,144.36,144.35,14.81633048]
[1746520192346,12.03163989,144.36,144.3,40.24]
[1746520192503,12.03163989,144.36,144.35,14.81633048]
[1746520193742,5.10451327,144.36,144.35,14.81633048]
[1746520194036,12.03163989,144.36,144.35,14.81633048]
[1746520194202,12.03163989,144.36,144.32,1.5381]
[1746520194402,12.03163989,144.36,144.35,14.81633048]
[1746520194622,12.03163989,144.36,144.32,1.5381]
[1746520194835,12.03163989,144.36,144.35,14.81633048]
[1746520195128,12.03163989,144.36,144.34,14.81633048]
[1746520195441,6.92712662,144.36,144.34,14.81633048]
[1746520196542,6.92712662,144.36,144.35,14.81633048]
[1746520197945,6.92712662,144.36,144.35,23.70534008]
[1746520200658,24.23852372,144.4,144.35,23.70534008]
[1746520200823,6.92616705,144.38,144.34,23.70534008]
[1746520201024,6.92616705,144.38,144.37,23.70534008]
[1746520201219,17.31331597,144.4,144.37,23.70534008]
[1746520201220,1.38427699,144.4,144.37,23.70534008]
[1746520201436,17.31063659,144.42,144.39,23.70534008]
[1746520201746,5.1029722,144.41,144.4,23.70534008]
[1746520201960,6.48724919,144.41,144.4,23.70534008]
[1746520202441,5.1029722,144.41,144.4,23.70534008]
[1746520203220,5.1029722,144.41,144.35,15.8358]
[1746520203443,1.38427699,144.4,144.38,23.70534008]
[1746520203632,25.08961707,144.4,144.36,23.70534008]
[1746520204048,1.38427699,144.4,144.38,23.70534008]
[1746520204549,25.6208257,144.41,144.38,23.70534008]
[1746520205122,5.09824481,144.4,144.38,23.70534008]
[1746520205349,1.38427699,144.39,144.38,23.70534008]
[1746520205547,1.38427699,144.39,144.37,23.70534008]
[1746520206123,1.38427699,144.4,144.37,23.70534008]
[1746520206743,6.92568737,144.39,144.37,23.70534008]
[1746520207049,1.38427699,144.38,144.37,23.70534008]
[1746520207621,6.48237265,144.38,144.37,23.70534008]
[1746520209656,13.4085397,144.38,144.37,23.70534008]
[1746520210546,13.4085397,144.38,144.36,23.70534008]
[1746520211051,5.09809566,144.37,144.35,14.22]
[1746520211226,5.09809566,144.37,144.36,23.70534008]
[1746520211856,6.92664681,144.37,144.36,23.70534008]
[1746520213644,12.0304413,144.37,144.36,23.70534008]
[1746520216054,29.34705832,144.37,144.32,40.22]
[1746520216259,1.38427699,144.36,144.32,40.22]
[1746520216559,1.38427699,144.36,144.33,23.70534008]
[1746520217348,5.1035728,144.35,144.32,23.70534008]
[1746520217549,1.38427699,144.34,144.32,23.70534008]
[1746520217754,1.38427699,144.34,144.32,14.82171933]
[1746520217927,1.38427699,144.34,144.33,14.82171933]
[1746520218130,13.41593625,144.34,144.33,14.82171933]
[1746520218327,5.1035728,144.34,144.33,14.82171933]
[1746520219646,5.1035728,144.36,144.33,14.82171933]
[1746520219845,5.1035728,144.36,144.35,14.82171933]
[1746520220245,5.1035728,144.36,144.35,21.74932584]
[1746520220449,5.1035728,144.38,144.35,21.74932584]
[1746520220637,5.1035728,144.38,144.37,14.82171933]
[1746520221127,12.02889223,144.4,144.37,14.82171933]
[1746520221329,12.02889223,144.4,144.39,14.82171933]
[1746520221527,5.1035728,144.4,144.39,14.82171933]
[1746520221760,12.02809963,144.42,144.39,23.68226503]
[1746520222063,5.1035728,144.42,144.41,23.68226503]
[1746520222946,5.1035728,144.42,144.41,47.36453006]
[1746520223129,5.1035728,144.43,144.41,47.36453006]
[1746520223326,5.1035728,144.43,144.42,23.68226503]
[1746520224233,6.92203494,144.47,144.42,23.68226503]
[1746520224430,6.92203494,144.47,144.46,23.68226503]
[1746520225157,6.92203494,144.47,144.43,14.22]
[1746520225158,35.70555369,144.47,144.43,14.22]
[1746520225340,1.38427699,144.46,144.43,23.68226503]
[1746520225541,1.38427699,144.46,144.44,23.68226503]
[1746520225757,8.30631193,144.47,144.45,23.68226503]
[1746520225955,8.30631193,144.47,144.46,23.68226503]
[1746520226255,6.9213732,144.48,144.46,23.68226503]
[1746520226559,6.9213732,144.48,144.42,32.9238129]
[1746520226560,6.9213732,144.48,144.47,23.68226503]
[1746520227340,17.30232217,144.49,144.47,23.68226503]
[1746520227548,18.68659916,144.49,144.48,23.68226503]
[1746520228457,23.78324445,144.49,144.48,23.68226503]
[1746520228962,23.78324445,144.49,144.47,23.68226503]
[1746520229362,5.09664529,144.48,144.44,23.68226503]
[1746520229546,1.38427699,144.47,144.44,23.68226503]
[1746520230063,1.38427699,144.47,144.45,23.68226503]
[1746520230546,1.38427699,144.48,144.45,23.68226503]
[1746520231066,1.38427699,144.48,144.44,23.68226503]
[1746520231067,25.06654202,144.48,144.44,23.68226503]
[1746520231269,23.68226503,144.45,144.4,14.22]
[1746520231562,23.68226503,144.43,144.39,23.68226503]
[1746520231741,1.38427699,144.42,144.39,23.68226503]
[1746520231939,1.38427699,144.42,144.4,23.68226503]
[1746520232142,1.38427699,144.43,144.4,23.68226503]
[1746520232464,25.06654202,144.43,144.39,23.68226503]
[1746520233266,5.09075722,144.42,144.4,23.68226503]
[1746520233469,8.30900519,144.41,144.39,23.68226503]
[1746520233655,25.6208257,144.41,144.38,23.68226503]
[1746520233858,49.30309073,144.41,144.36,14.22]
[1746520234073,25.6208257,144.41,144.39,23.68226503]
[1746520234371,6.9247282,144.41,144.4,23.68226503]
[1746520234748,6.92440372,144.42,144.4,23.68226503]
[1746520234944,6.92440372,144.42,144.41,23.68226503]
[1746520235651,18.69031959,144.46,144.41,23.68226503]
[1746520236044,5.09300665,144.45,144.41,23.68226503]
[1746520236245,1.38427699,144.44,144.41,23.68226503]
[1746520236564,12.01581731,144.45,144.43,23.68226503]
[1746520236868,12.01581731,144.45,144.44,23.68226503]
[1746520237073,6.92281066,144.45,144.44,23.68226503]
[1746520240062,6.92233144,144.46,144.44,23.68226503]
[1746520240663,6.92233144,144.46,144.45,23.68226503]
[1746520241366,24.22816004,144.46,144.43,23.68226503]
[1746520241571,1.38427699,144.45,144.43,23.68226503]
[1746520241968,25.61243703,144.46,144.43,23.68226503]
[1746520242164,25.61243703,144.46,144.44,23.68226503]
[1746520242964,24.22816004,144.46,144.44,23.68226503]
[1746520243859,1.38427699,144.45,144.44,23.68226503]
[1746520244158,8.30708765,144.45,144.44,23.68226503]
[1746520244358,6.92281066,144.45,144.43,23.68226503]
[1746520244666,8.30708765,144.45,144.43,23.68226503]
[1746520245456,8.30708765,144.45,144.44,23.68226503]
[1746520245765,6.92281066,144.45,144.44,23.68226503]
[1746520245952,1.38427699,144.47,144.44,23.68226503]
[1746520246155,6.92233144,144.46,144.42,26.0]
[1746520246380,6.92233144,144.46,144.45,23.68226503]
[1746520247594,6.92233144,144.46,144.42,26.0]
[1746520247595,8.30660843,144.46,144.42,26.0]
[1746520247882,25.61243703,144.46,144.44,23.68226503]
[1746520248092,25.61243703,144.46,144.42,26.0]
[1746520248093,25.61243703,144.46,144.45,23.68226503]
[1746520248388,1.38427699,144.46,144.45,23.68226503]
[1746520248579,6.92041522,144.5,144.45,23.68226503]
[1746520248778,6.92041522,144.5,144.49,23.68226503]
[1746520248977,8.30469221,144.5,144.49,23.68226503]
[1746520249180,8.30469221,144.5,144.48,23.68226503]
[1746520249989,8.30469221,144.5,144.44,1.5168]
[1746520250168,8.30469221,144.5,144.48,23.68226503]
[1746520250369,49.2879953,144.5,144.44,1.5168]
[1746520250588,49.2879953,144.5,144.46,23.68226503]
[1746520251671,25.60573027,144.5,144.44,1.5168]
[1746520251872,25.60573027,144.5,144.47,23.68226503]
[1746520253791,25.60573027,144.5,144.44,1.5168]
[1746520253989,25.60573027,144.5,144.47,23.68226503]
[1746520255090,25.60573027,144.5,144.48,23.68226503]
[1746520255397,25.60573027,144.5,144.49,23.68226503]
[1746520255693,25.60573027,144.5,144.47,23.68226503]
[1746520256777,25.60573027,144.5,144.46,23.68226503]
[1746520257302,25.60573027,144.5,144.48,23.68226503]
[1746520257483,25.60573027,144.5,144.44,1.5168]
[1746520257686,25.60573027,144.5,144.49,23.68226503]
[1746520257889,25.60573027,144.5,144.48,23.68226503]
[1746520258785,25.60573027,144.5,144.47,23.68226503]
[1746520260380,25.60573027,144.5,144.48,23.68226503]
[1746520260583,25.60573027,144.5,144.44,1.5168]
[1746520260788,154.2,144.49,144.47,23.68226503]
[1746520260968,161.1213732,144.48,144.47,23.68226503]
[1746520263299,161.1213732,144.48,144.44,1.5168]
[1746520263482,6.9213732,144.48,144.47,23.68226503]
[1746520264103,6.9213732,144.48,144.44,1.5168]
[1746520264318,6.9213732,144.48,144.47,23.68226503]
[1746520265708,6.9213732,144.48,144.47,14.79105667]
[1746520267888,12.02932967,144.48,144.47,14.79105667]
[1746520270107,6.59024477,144.48,144.47,14.79105667]
[1746520277224,6.59024477,144.48,144.44,1.5168]
[1746520277420,6.59024477,144.48,144.47,14.79105667]
[1746520277809,6.59024477,144.48,144.44,1.5168]
[1746520278006,6.59024477,144.48,144.47,14.79105667]
[1746520278812,11.69867909,144.48,144.47,14.79105667]
[1746520282827,5.10843432,144.48,144.47,14.79105667]
[1746520285106,12.02980752,144.48,144.47,14.79105667]
[1746520289914,12.02980752,144.48,144.44,1.5168]
[1746520290115,154.2,144.47,144.44,1.5168]
[1746520290321,154.2,144.47,144.46,14.79105667]
[1746520290814,159.30843432,144.47,144.46,14.79105667]
[1746520291036,159.30843432,144.47,144.44,1.5168]
[1746520291037,6.92233144,144.46,144.43,14.2]
[1746520291220,6.92233144,144.46,144.44,14.79105667]
[1746520291531,5.10843432,144.45,144.44,14.79105667]
[1746520291834,5.10843432,144.45,144.43,14.2]
[1746520292042,5.10843432,144.45,144.44,14.79105667]
[1746520292220,8.30660843,144.46,144.44,14.79105667]
[1746520292843,154.2,144.45,144.44,14.79105667]
[1746520293134,6.92328994,144.44,144.43,14.79105667]
[1746520293729,8.30756693,144.44,144.41,14.79105667]
[1746520293937,22.82794994,144.43,144.4,40.2]
[1746520294107,22.82794994,144.43,144.4,14.2]
[1746520294316,22.82794994,144.43,144.41,14.79105667]
[1746520294834,5.12794994,144.42,144.41,14.79105667]
[1746520295134,12.05219865,144.42,144.41,14.79105667]
[1746520295837,5.12794994,144.42,144.41,14.79105667]
[1746520296946,5.12794994,144.42,144.41,29.58211334]
[1746520297135,5.12794994,144.42,144.41,36.50684154]
[1746520297322,5.12794994,144.42,144.41,29.58211334]
[1746520297621,17.7,144.43,144.41,29.58211334]
[1746520297822,17.7,144.43,144.42,14.79105667]
[1746520298318,143.4228537,144.45,144.42,14.79105667]
[1746520299446,5.11807328,144.44,144.42,14.79105667]
[1746520300546,143.42288409,144.45,144.42,14.79105667]
[1746520300726,143.42288409,144.45,144.44,14.79105667]
[1746520301133,148.54048673,144.45,144.44,14.79105667]
[1746520307937,148.54048673,144.45,144.43,14.79105667]
[1746520308252,148.54048673,144.45,144.44,14.79105667]
[1746520308941,141.61760264,144.45,144.44,14.79105667]
[1746520312664,148.5404133,144.45,144.44,14.79105667]
[1746520312870,141.61760264,144.45,144.44,14.79105667]
[1746520315461,148.5404133,144.45,144.44,14.79105667]
[1746520316160,5.11760264,144.45,144.44,14.79105667]
[1746520316364,5.11760264,144.45,144.44,21.71434661]
[1746520317145,6.92100695,144.49,144.44,21.71434661]
[1746520317542,6.92100695,144.49,144.48,14.79105667]
[1746520318469,12.03837494,144.49,144.48,14.79105667]
[1746520320562,12.03837494,144.49,144.44,6.92309365]
[1746520320869,13.42265193,144.49,144.48,14.79105667]
[1746520321045,5.11736799,144.49,144.48,14.79105667]
[1746520321250,12.03826216,144.49,144.48,14.79105667]
[1746520323265,13.42253915,144.49,144.48,14.79105667]
[1746520324545,12.03826216,144.49,144.48,14.79105667]
[1746520329269,6.92089417,144.49,144.48,14.79105667]
[1746520329564,143.4206448,144.5,144.48,14.79105667]
[1746520329750,136.5,144.5,144.49,14.79105667]
[1746520330467,141.61384693,144.5,144.49,14.79105667]
[1746520331366,136.5,144.5,144.49,14.79105667]
[1746520332968,42.36835667,144.56,144.49,14.79105667]
[1746520332969,143.4191004,144.53,144.49,14.79105667]
[1746520333182,143.4191004,144.53,144.52,14.79105667]
[1746520333964,148.52262564,144.53,144.52,14.79105667]
[1746520334169,141.60352524,144.53,144.52,14.79105667]
[1746520334870,5.10352524,144.53,144.52,14.79105667]
[1746520335353,12.02250399,144.53,144.52,14.79105667]
[1746520335551,5.10352524,144.53,144.52,14.79105667]
[1746520336158,6.91857082,144.54,144.52,14.79105667]
[1746520336357,6.91857082,144.54,144.5,26.0]
[1746520336548,6.91857082,144.54,144.52,14.79105667]
[1746520336753,6.91857082,144.54,144.5,26.0]
[1746520336754,24.21482099,144.54,144.51,14.79105667]
[1746520337052,25.59909798,144.54,144.51,14.79105667]
[1746520337655,17.7,144.53,144.51,14.79105667]
[1746520337863,17.7,144.53,144.52,14.79105667]
[1746520338451,17.7,144.53,144.51,14.79105667]
[1746520338652,17.7,144.53,144.52,14.79105667]
[1746520339578,24.61897875,144.53,144.52,14.79105667]
[1746520340468,6.91897875,144.53,144.52,14.79105667]
[1746520341054,24.21642564,144.53,144.5,14.79105667]
[1746520341270,24.21642564,144.53,144.51,14.79105667]
[1746520341475,1.38427699,144.52,144.51,14.79105667]
[1746520341657,6.91993633,144.51,144.5,14.79105667]
[1746520342490,6.91993633,144.51,144.48,26.0]
[1746520342671,17.7,144.5,144.48,26.0]
[1746520342873,17.7,144.5,144.49,14.79105667]
[1746520343776,24.62041522,144.5,144.49,14.79105667]
[1746520343977,24.62041522,144.5,144.48,26.0]
[1746520344275,24.62041522,144.5,144.49,14.79105667]
[1746520345961,6.92041522,144.5,144.49,14.79105667]
[1746520352175,136.5,144.51,144.49,14.79105667]
[1746520352368,136.5,144.51,144.5,14.79105667]
[1746520353684,143.41993633,144.51,144.5,14.79105667]
[1746520353856,143.41993633,144.51,144.5,9.46157258]
[1746520354386,136.5,144.51,144.5,9.46157258]
[1746520355373,17.7,144.51,144.5,9.46157258]
[1746520355579,17.7,144.51,144.5,16.3819878]
[1746520355787,17.7,144.51,144.5,40.77841303]
[1746520356462,17.7,144.51,144.5,47.69882825]
[1746520356785,17.7,144.51,144.5,61.85882825]
[1746520357280,6.91802144,144.55,144.5,80.50847711]